bitfinex/quotes_BTCUSD_20250129
["timestamp","ask_amount","ask_price","bid_price","bid_amount"]
[1738184534552,0.00229925,104200.0,104190.0,0.14425414]
[1738184534759,0.14635006,104200.0,104190.0,0.00028714]
[1738184535368,0.14491081,104200.0,104190.0,0.00028714]
[1738184535774,0.15074238,104200.0,104190.0,0.14425414]
[1738184535973,0.14591081,104200.0,104190.0,0.00028714]
[1738184536203,0.14591081,104200.0,104190.0,0.00328714]
[1738184536204,0.14491081,104200.0,104190.0,0.00328714]
[1738184536416,0.00578938,104200.0,104190.0,0.14725414]
[1738184536622,0.002,104200.0,104190.0,0.46040304]
[1738184536827,0.002,104200.0,104190.0,0.4594433]
[1738184537031,0.69149989,104250.0,104210.0,0.14394]
[1738184537240,0.34069557,104210.0,104190.0,1.7894753]
[1738184537448,0.15178457,104200.0,104190.0,0.00028714]
[1738184537653,0.14791081,104200.0,104190.0,0.00028714]
[1738184538053,0.36875397,104200.0,104190.0,0.00028714]
[1738184538259,0.83355182,104200.0,104190.0,0.00028714]
[1738184538458,0.83355182,104200.0,104170.0,0.000142]
[1738184538459,0.03,104190.0,104170.0,0.000142]
[1738184538660,0.67793763,104180.0,104170.0,0.000142]
[1738184538853,0.67697982,104180.0,104170.0,0.000142]
[1738184539696,0.67697982,104180.0,104170.0,0.001142]
[1738184539916,0.67697982,104180.0,104170.0,0.000142]
[1738184540121,0.39122416,104180.0,104170.0,0.000142]
[1738184540353,0.39522416,104180.0,104170.0,0.000142]
[1738184540497,0.68397982,104180.0,104170.0,0.000142]
[1738184540703,0.53397982,104180.0,104170.0,0.000142]
[1738184541581,0.43673666,104180.0,104170.0,0.000142]
[1738184542194,0.1593763,104180.0,104170.0,0.000142]
[1738184542399,0.007,104180.0,104170.0,0.000142]
[1738184542630,0.150981,104180.0,104170.0,0.000142]
[1738184542935,0.68493763,104180.0,104170.0,0.000142]
[1738184543214,0.70097982,104180.0,104170.0,0.000142]
[1738184543456,0.71097982,104180.0,104170.0,1e-06]
[1738184543658,0.69297982,104180.0,104170.0,1e-06]
[1738184544275,0.294009,104160.0,104150.0,0.0001423]
[1738184544487,0.69700782,104160.0,104150.0,0.0001423]
[1738184544701,0.00483157,104100.0,104090.0,0.0157319]
[1738184544912,0.00483157,104100.0,104090.0,0.1598379]
[1738184545141,0.29058723,104110.0,104090.0,0.1598379]
[1738184545354,0.00483157,104120.0,104100.0,0.24133516]
[1738184545583,0.00483157,104140.0,104110.0,0.144078]
[1738184545807,0.00483157,104150.0,104130.0,0.336107]
[1738184546010,0.00483157,104140.0,104120.0,0.09724316]
[1738184546231,0.00483157,104140.0,104130.0,0.14405]
[1738184546651,0.00483157,104140.0,104130.0,0.336111]
[1738184546873,0.00483157,104130.0,104120.0,1.842076]
[1738184547115,0.00483157,104130.0,104120.0,0.00014395]
[1738184547116,0.14983938,104130.0,104120.0,0.00014395]
[1738184547331,0.43076347,104130.0,104120.0,0.00014395]
[1738184547540,0.53765559,104130.0,104120.0,0.00014395]
[1738184548383,0.52704882,104130.0,104120.0,0.00014395]
[1738184548862,0.69704882,104130.0,104120.0,0.00014395]
[1738184549065,0.67704882,104130.0,104120.0,0.00014395]
[1738184549296,0.67904882,104130.0,104120.0,0.00014395]
[1738184550450,0.6873017,104130.0,104120.0,0.00014395]
[1738184550712,0.81469846,104130.0,104120.0,0.00014395]
[1738184550961,0.144092,104100.0,104090.0,0.0157319]
[1738184551214,0.67804863,104100.0,104090.0,0.01621165]
[1738184551460,0.67709082,104100.0,104090.0,0.01621165]
[1738184552173,0.70924468,104100.0,104090.0,0.01621165]
[1738184552591,0.52709082,104100.0,104090.0,0.01621165]
[1738184552799,0.53309082,104100.0,104090.0,0.01621165]
[1738184553237,0.43584766,104100.0,104090.0,0.01621165]
[1738184553482,0.53309082,104100.0,104090.0,0.01621165]
[1738184553671,0.43584766,104100.0,104090.0,0.01621165]
[1738184554088,0.43284766,104100.0,104090.0,0.01621165]
[1738184554321,0.52709082,104100.0,104090.0,0.01621165]
[1738184554530,0.53009082,104100.0,104090.0,0.01621165]
[1738184554766,0.53309082,104100.0,104090.0,0.01621165]
[1738184555385,0.53009082,104100.0,104090.0,0.01621165]
[1738184555589,0.38599882,104100.0,104090.0,1.66031765]
[1738184555843,0.006,104100.0,104090.0,1.66031765]
[1738184556051,0.006,104100.0,104090.0,1.66046015]
[1738184556257,0.150092,104100.0,104090.0,1.66046015]
[1738184556486,0.150092,104100.0,104090.0,1.51635415]
[1738184556696,0.006,104100.0,104090.0,0.16046015]
[1738184557124,0.150092,104100.0,104090.0,0.01635415]
[1738184557321,0.144092,104100.0,104090.0,0.16046015]
[1738184557525,0.002,104100.0,104090.0,0.16046015]
[1738184558171,0.52804863,104100.0,104090.0,0.01935415]
[1738184558396,0.77644758,104100.0,104090.0,0.01935415]
[1738184558617,0.67909082,104100.0,104090.0,0.01635415]
[1738184559036,0.52709082,104100.0,104090.0,0.01635415]
[1738184560488,0.38899882,104100.0,104090.0,0.16046015]
[1738184560701,0.10024316,104100.0,104090.0,0.16046015]
[1738184560921,0.52804863,104100.0,104090.0,0.01635415]
[1738184561136,0.55684075,104100.0,104090.0,0.01635415]
[1738184561337,0.55884075,104100.0,104090.0,0.01635415]
[1738184561555,0.52909082,104100.0,104090.0,0.01635415]
[1738184561759,0.52709082,104100.0,104090.0,0.01635415]
[1738184562076,0.52809082,104100.0,104090.0,0.01935415]
[1738184562502,0.67809082,104100.0,104090.0,0.01935415]
[1738184562836,0.68109082,104100.0,104090.0,0.01935415]
[1738184563045,0.77844758,104100.0,104090.0,0.01935415]
[1738184563445,0.80960144,104100.0,104090.0,0.01935415]
[1738184563676,0.8088343,104100.0,104090.0,0.01935415]
[1738184563847,0.84398816,104100.0,104090.0,0.01935415]
[1738184564051,0.71447754,104100.0,104090.0,0.01935415]
[1738184564236,0.68009082,104100.0,104090.0,0.01935415]
[1738184564445,0.53009082,104100.0,104090.0,0.01935415]
[1738184564648,0.53509082,104100.0,104090.0,0.01935415]
[1738184564849,0.80694468,104100.0,104090.0,0.01935415]
[1738184565078,0.91284758,104100.0,104090.0,0.01935415]
[1738184565279,0.33549272,104090.0,104080.0,0.0002024]
[1738184565499,0.7506454,104090.0,104080.0,0.0002024]
[1738184565702,0.71925868,104090.0,104080.0,0.0002024]
[1738184565930,0.68710482,104090.0,104080.0,0.0002024]
[1738184566177,0.76726718,104090.0,104080.0,0.0002024]
[1738184566392,0.77726718,104090.0,104080.0,0.0002024]
[1738184566614,0.76726718,104090.0,104080.0,0.0002024]
[1738184566857,0.67710482,104090.0,104080.0,0.0002024]
[1738184567556,0.68577799,104090.0,104080.0,0.0002024]
[1738184567755,0.68977799,104090.0,104080.0,0.0002024]
[1738184567994,0.69877799,104090.0,104080.0,0.0002024]
[1738184568171,1.10213475,104090.0,104080.0,0.0002024]
[1738184568610,0.79713475,104090.0,104080.0,0.0002024]
[1738184568822,0.80713475,104090.0,104080.0,0.0002024]
[1738184569043,0.79713475,104090.0,104080.0,0.0002024]
[1738184569464,0.816378,104090.0,104080.0,0.0002024]
[1738184569684,0.69977799,104090.0,104080.0,0.0002024]
[1738184570586,0.54981799,104090.0,104080.0,0.0002024]
[1738184572413,0.69981799,104090.0,104080.0,0.0002024]
[1738184572651,0.60035601,104090.0,104080.0,0.0002024]
[1738184572865,0.70771277,104090.0,104080.0,0.0002024]
[1738184573701,0.89400645,104090.0,104080.0,0.0002024]
[1738184573920,0.70771277,104090.0,104080.0,0.0002024]
[1738184574648,0.89400645,104090.0,104080.0,0.0002024]
[1738184574846,0.87390045,104090.0,104060.0,0.0001423]
[1738184575047,0.57766984,104070.0,104060.0,0.0001423]
[1738184575482,0.6750266,104070.0,104060.0,0.0001423]
[1738184575947,0.57766984,104070.0,104060.0,0.0001423]
[1738184577865,0.58166984,104070.0,104060.0,0.0001423]
[1738184578292,0.59351636,104070.0,104060.0,0.0001423]
[1738184578499,0.60351636,104070.0,104060.0,0.0001423]
[1738184579273,0.14899557,104050.0,104030.0,0.336433]
[1738184579484,0.00483157,104050.0,104040.0,0.144175]
[1738184579694,0.26308968,104070.0,104040.0,0.15]
[1738184579695,0.11792125,104070.0,104040.0,0.15]
[1738184579911,0.25320773,104070.0,104060.0,0.144147]
[1738184580124,0.00483157,104070.0,104060.0,0.1442892]
[1738184580348,0.42862765,104070.0,104060.0,0.0001422]
[1738184580566,0.28884905,104070.0,104060.0,0.0001422]
[1738184580773,0.00531221,104070.0,104060.0,0.1442892]
[1738184581194,0.00931221,104070.0,104060.0,0.1442892]
[1738184581441,0.00248064,104070.0,104060.0,0.29525009]
[1738184581651,0.00248064,104070.0,104060.0,0.44381598]
[1738184581869,0.00348064,104070.0,104060.0,1.94381598]
[1738184582291,0.00033862,104090.0,104080.0,0.294119]
[1738184582514,0.00033862,104090.0,104080.0,0.418419]
[1738184582740,0.00095781,104110.0,104090.0,0.294106]
[1738184582960,0.00608884,104120.0,104110.0,0.144078]
[1738184583172,0.00608884,104120.0,104110.0,0.294078]
[1738184583173,0.00513103,104120.0,104110.0,0.294078]
[1738184583393,0.00029946,104120.0,104110.0,0.60917168]
[1738184583602,0.00029946,104120.0,104110.0,2.20641484]
[1738184583830,0.00029946,104120.0,104110.0,2.10917168]
[1738184584043,0.00029946,104120.0,104110.0,1.922878]
[1738184584293,0.00029946,104120.0,104110.0,1.95214639]
[1738184584510,0.00029946,104120.0,104110.0,0.30806839]
[1738184584719,0.14536346,104120.0,104110.0,0.03726839]
[1738184584924,0.00325727,104120.0,104110.0,0.152078]
[1738184585140,0.09950043,104120.0,104110.0,0.152078]
[1738184585411,0.00708884,104120.0,104110.0,0.152078]
[1738184585616,0.00713103,104120.0,104110.0,0.15027437]
[1738184585818,0.00613103,104120.0,104110.0,0.144078]
[1738184586023,0.00613103,104120.0,104110.0,0.13420896]
[1738184586235,0.00713103,104120.0,104110.0,0.12129208]
[1738184586451,0.00483157,104110.0,104090.0,0.52157842]
[1738184586691,0.14891157,104110.0,104100.0,0.00014469]
[1738184586911,0.62067965,104110.0,104100.0,0.00014469]
[1738184587136,0.43342816,104110.0,104100.0,0.00014469]
[1738184587581,0.52856646,104120.0,104100.0,0.14423569]
[1738184587785,0.10403254,104110.0,104100.0,0.14423669]
[1738184588004,0.00295781,104110.0,104100.0,0.15023669]
[1738184588216,0.001,104110.0,104100.0,0.30119724]
[1738184588432,0.001,104110.0,104100.0,0.30023669]
[1738184588638,0.00583157,104110.0,104100.0,0.30023669]
[1738184589055,0.15086738,104110.0,104100.0,0.00614469]
[1738184589272,0.42857265,104110.0,104100.0,0.00014469]
[1738184589482,0.14895057,104080.0,104070.0,0.0713651]
[1738184589692,0.00578938,104080.0,104070.0,0.3654981]
[1738184589910,0.00483157,104090.0,104070.0,0.2154981]
[1738184590117,0.00483157,104100.0,104090.0,0.144106]
[1738184590323,0.00483157,104090.0,104080.0,0.294119]
[1738184591410,0.00483157,104080.0,104070.0,0.194162]
[1738184591619,0.00483157,104080.0,104070.0,0.342162]
[1738184591829,0.00483157,104090.0,104080.0,0.144119]
[1738184592052,0.001,104100.0,104090.0,0.144106]
[1738184592280,0.00583157,104100.0,104090.0,0.144106]
[1738184592501,0.00483157,104090.0,104080.0,0.294119]
[1738184592718,0.00678938,104100.0,104080.0,0.294119]
[1738184592967,0.001,104100.0,104090.0,0.294106]
[1738184593173,0.0052744,104110.0,104100.0,0.144092]
[1738184593656,0.00483157,104100.0,104090.0,0.294106]
[1738184593877,0.00483157,104090.0,104080.0,0.144119]
[1738184594110,0.00578938,104100.0,104090.0,0.336241]
[1738184594317,0.001,104100.0,104090.0,0.486241]
[1738184594528,0.0052744,104110.0,104100.0,0.144092]
[1738184594735,0.0052744,104110.0,104100.0,0.146092]
[1738184595143,0.0052744,104110.0,104100.0,0.144092]
[1738184595358,0.00623221,104110.0,104100.0,0.144092]
[1738184595569,0.0052744,104110.0,104100.0,0.144092]
[1738184595770,0.00623221,104110.0,104100.0,0.144092]
[1738184596160,0.0052744,104110.0,104100.0,0.144092]
[1738184596576,0.00483157,104100.0,104090.0,0.144106]
[1738184596789,0.14895057,104080.0,104060.0,0.3364602]
[1738184597000,0.14895057,104080.0,104060.0,0.1923242]
[1738184597001,0.00578938,104070.0,104060.0,0.1923242]
[1738184597204,0.00483157,104070.0,104060.0,0.3845082]
[1738184597819,0.00578938,104080.0,104070.0,0.144133]
[1738184598041,0.14607681,104080.0,104070.0,0.144133]
[1738184598254,0.00483157,104070.0,104060.0,0.3443242]
[1738184598468,0.144133,104070.0,104060.0,0.0021422]
[1738184599309,0.144133,104070.0,104060.0,0.0001422]
[1738184599517,0.14509081,104070.0,104060.0,0.0001422]
[1738184599720,0.24333397,104070.0,104060.0,0.0021422]
[1738184599930,0.24237616,104070.0,104060.0,0.0021422]
[1738184600132,0.24337616,104070.0,104060.0,0.0051422]
[1738184600770,0.24237616,104070.0,104060.0,0.0021422]
[1738184600986,0.24137616,104070.0,104060.0,0.0001422]
[1738184601199,0.24237616,104070.0,104060.0,0.0051422]
[1738184602474,0.24237616,104070.0,104060.0,0.0001422]
[1738184602475,0.24137616,104070.0,104060.0,0.0001422]
[1738184602893,0.24237616,104070.0,104060.0,0.0031422]
[1738184603102,0.24237616,104070.0,104060.0,0.0011422]
[1738184603334,0.24237616,104070.0,104060.0,0.0001422]
[1738184603760,0.24437616,104070.0,104060.0,0.0001422]
[1738184604229,0.36173292,104070.0,104060.0,0.0001422]
[1738184604434,0.26537616,104070.0,104060.0,0.0001422]
[1738184604634,0.26537616,104070.0,104060.0,0.0021422]
[1738184605908,0.26437616,104070.0,104060.0,0.0001422]
[1738184606136,0.26437616,104070.0,104040.0,0.336405]
[1738184606137,0.144189,104030.0,104020.0,0.06925254]
[1738184606362,0.24238997,104030.0,104020.0,0.06072766]
[1738184606584,0.42772584,104030.0,104020.0,0.06072766]
[1738184606814,0.39143216,104030.0,104020.0,0.06072766]
[1738184607028,0.24143216,104030.0,104020.0,0.06072766]
[1738184607236,0.09724316,104030.0,104020.0,0.06072766]
[1738184607448,0.24238997,104030.0,104020.0,0.06072766]
[1738184607659,0.24143216,104030.0,104020.0,0.06072766]
[1738184607883,0.32,104020.0,104010.0,0.03287662]
[1738184608109,0.167244,103990.0,103980.0,0.07347301]
[1738184608317,0.93173865,103990.0,103980.0,0.05774111]
[1738184608533,0.317258,103980.0,103970.0,0.07454111]
[1738184608753,0.67779484,103980.0,103970.0,0.07454111]
[1738184608974,0.94066179,103980.0,103970.0,0.01108909]
[1738184609197,0.187286,103960.0,103940.0,0.0765953]
[1738184609436,0.45178065,103960.0,103940.0,0.0765953]
[1738184609643,0.60082284,103960.0,103940.0,0.0765953]
[1738184609852,0.60130268,103960.0,103950.0,0.02693396]
[1738184610267,0.27048421,103960.0,103950.0,0.02693396]
[1738184610741,0.27648421,103960.0,103950.0,0.02693396]
[1738184610954,0.02895505,103960.0,103950.0,0.17123396]
[1738184611160,0.00447984,103960.0,103950.0,1.52693396]
[1738184611384,0.15455522,103960.0,103950.0,1.52693396]
[1738184611593,0.15455522,103960.0,103950.0,1.67123396]
[1738184611594,0.00626922,103960.0,103950.0,1.67123396]
[1738184611799,0.00047984,103960.0,103950.0,0.17123396]
[1738184612224,0.00047984,103960.0,103950.0,1.91847712]
[1738184613056,0.00047984,103960.0,103950.0,1.92047712]
[1738184613057,0.00247984,103960.0,103950.0,1.92047712]
[1738184613478,0.00047984,103960.0,103950.0,1.99734555]
[1738184613865,0.00147984,103960.0,103950.0,1.96717712]
[1738184614073,0.00147984,103960.0,103950.0,1.97611432]
[1738184614243,0.00047984,103960.0,103950.0,1.97611432]
[1738184614648,0.00247984,103960.0,103950.0,1.97811432]
[1738184615134,0.00247984,103960.0,103950.0,0.47811432]
[1738184615339,0.00247984,103960.0,103950.0,0.32323396]
[1738184615566,0.00731141,103960.0,103950.0,0.17323396]
[1738184615764,0.15159741,103960.0,103950.0,0.02893396]
[1738184615967,0.00631141,103960.0,103950.0,0.17123396]
[1738184616186,0.00631141,103960.0,103950.0,0.02693396]
[1738184616320,0.00631141,103960.0,103950.0,0.17323396]
[1738184616665,0.10551238,103960.0,103950.0,0.02693396]
[1738184616874,0.00831141,103960.0,103950.0,0.17323396]
[1738184617134,0.24496681,103960.0,103950.0,0.02893396]
[1738184617345,0.417009,103960.0,103950.0,0.02893396]
[1738184617553,0.418009,103960.0,103950.0,0.02893396]
[1738184617769,0.516609,103960.0,103950.0,0.02893396]
[1738184617992,0.496609,103960.0,103950.0,0.02893396]
[1738184618234,0.59296576,103960.0,103950.0,0.02893396]
[1738184618453,0.61296576,103960.0,103950.0,0.02893396]
[1738184618647,0.59296576,103960.0,103950.0,0.02893396]
[1738184618881,0.495609,103960.0,103950.0,0.02893396]
[1738184619085,0.392009,103960.0,103950.0,0.02693396]
[1738184619293,0.242009,103960.0,103950.0,0.02693396]
[1738184619496,0.01131141,103960.0,103950.0,0.17123396]
[1738184619684,0.00631141,103960.0,103950.0,0.17123396]
[1738184619996,0.00831141,103960.0,103950.0,0.17123396]
[1738184620261,0.00347984,103960.0,103950.0,0.17123396]
[1738184620459,0.00347984,103960.0,103950.0,1.67123396]
[1738184620659,0.00347984,103960.0,103950.0,1.76847712]
[1738184620875,0.00047984,103960.0,103950.0,0.26847712]
[1738184621277,0.00447984,103960.0,103950.0,1.76847712]
[1738184622094,0.00447984,103960.0,103950.0,1.91847712]
[1738184622294,0.00147984,103960.0,103950.0,1.91847712]
[1738184622736,0.00247984,103960.0,103950.0,1.92047712]
[1738184623173,0.00147984,103960.0,103950.0,1.92047712]
[1738184623386,0.00247984,103960.0,103950.0,1.92047712]
[1738184623592,0.00147984,103960.0,103950.0,1.91847712]
[1738184623804,0.00147984,103960.0,103950.0,1.92047712]
[1738184624031,0.00147984,103960.0,103950.0,0.27047712]
[1738184624245,0.00147984,103960.0,103950.0,0.02893396]
[1738184624464,0.15159741,103960.0,103950.0,0.02893396]
[1738184624673,0.20532773,103960.0,103950.0,0.02893396]
[1738184625322,0.00731141,103960.0,103950.0,0.17323396]
[1738184625525,0.14959741,103960.0,103950.0,0.02693396]
[1738184625662,0.00047984,103960.0,103950.0,0.02693396]
[1738184625864,0.00531141,103960.0,103950.0,0.03193396]
[1738184626090,0.00631141,103960.0,103950.0,0.03393396]
[1738184626287,0.00631141,103960.0,103950.0,0.02893396]
[1738184626489,0.00177888,103960.0,103950.0,0.17323396]
[1738184626689,0.00077888,103960.0,103950.0,0.17423396]
[1738184627097,0.00177888,103960.0,103950.0,0.17323396]
[1738184627333,0.00177888,103960.0,103950.0,1.67123396]
[1738184627542,0.00177888,103960.0,103950.0,1.77047712]
[1738184628197,0.00177888,103960.0,103950.0,1.92047712]
[1738184628606,0.00483157,103990.0,103950.0,1.92047712]
[1738184628814,0.00483157,103980.0,103950.0,1.76862152]
[1738184629021,0.14909557,103980.0,103960.0,0.144286]
[1738184629232,0.14909557,103980.0,103950.0,1.96101052]
[1738184629233,0.001,103960.0,103950.0,0.03307836]
[1738184629448,0.24252916,103960.0,103950.0,0.03307836]
[1738184629651,0.24152916,103960.0,103950.0,0.02707836]
[1738184629855,0.24152916,103960.0,103950.0,0.02907836]
[1738184630266,0.09724316,103960.0,103950.0,0.03007836]
[1738184630444,0.09920097,103960.0,103950.0,0.03207836]
[1738184630607,0.24348697,103960.0,103950.0,0.03207836]
[1738184630810,0.24252916,103960.0,103950.0,0.03207836]
[1738184631241,0.24252916,103960.0,103950.0,0.03407836]
[1738184631441,0.24736073,103960.0,103950.0,0.03407836]
[1738184631642,0.24252916,103960.0,103950.0,0.03407836]
[1738184631892,0.24252916,103960.0,103950.0,0.03107836]
[1738184632257,0.24936073,103960.0,103950.0,0.03107836]
[1738184632441,0.25840406,103960.0,103950.0,0.02907836]
[1738184632643,0.25840406,103960.0,103950.0,0.02707836]
[1738184632644,0.25257249,103960.0,103950.0,0.02707836]
[1738184632854,0.25357249,103960.0,103950.0,0.03607836]
[1738184633057,0.25357249,103960.0,103950.0,0.02707836]
[1738184633496,0.25357249,103960.0,103950.0,0.02907836]
[1738184633695,0.25840406,103960.0,103950.0,0.02907836]
[1738184633927,0.00783157,103960.0,103950.0,0.02907836]
[1738184634351,0.24936073,103960.0,103950.0,0.02907836]
[1738184634566,0.32236823,103960.0,103950.0,0.02907836]
[1738184634999,0.24452916,103960.0,103950.0,0.02907836]
[1738184635624,0.39452916,103960.0,103950.0,0.02907836]
[1738184636607,0.41752916,103960.0,103950.0,0.02907836]
[1738184638187,0.144341,103920.0,103910.0,0.00369724]
[1738184638318,0.24158416,103920.0,103910.0,0.00369724]
[1738184639427,0.24158416,103920.0,103910.0,0.00569724]
[1738184639629,0.24172797,103920.0,103910.0,0.00569724]
[1738184640033,0.00483157,103910.0,103900.0,0.16471331]
[1738184640639,0.00697538,103920.0,103910.0,0.144355]
[1738184641072,0.00214381,103920.0,103910.0,0.144355]
[1738184641284,0.15227419,103920.0,103910.0,1.644355]
[1738184641484,0.15131638,103920.0,103910.0,1.644355]
[1738184641729,0.00697538,103920.0,103910.0,1.644355]
[1738184642146,0.14931638,103920.0,103910.0,0.144355]
[1738184642401,0.14931638,103920.0,103900.0,0.02334531]
[1738184642402,0.14918657,103910.0,103900.0,0.02334531]
[1738184642600,0.24738754,103910.0,103900.0,0.16771431]
[1738184642804,0.10207473,103910.0,103900.0,0.16471431]
[1738184642950,0.10303254,103910.0,103900.0,0.16471431]
[1738184643358,0.00597538,103920.0,103910.0,0.144355]
[1738184643557,0.10417635,103920.0,103910.0,0.144355]
[1738184643874,0.09738697,103920.0,103910.0,1.644355]
[1738184644075,0.00497538,103920.0,103910.0,0.144355]
[1738184644251,0.14931638,103920.0,103910.0,0.144355]
[1738184644454,0.19039379,103920.0,103910.0,0.144355]
[1738184645098,0.04605279,103920.0,103910.0,0.144355]
[1738184645332,0.00483157,103910.0,103900.0,0.35719431]
[1738184645541,0.00578938,103910.0,103900.0,0.16471431]
[1738184645748,0.02982691,103920.0,103910.0,0.144355]
[1738184646402,0.00014381,103920.0,103910.0,0.144355]
[1738184647892,0.00014381,103920.0,103910.0,0.3925603]
[1738184648103,0.00014381,103920.0,103910.0,0.42118853]
[1738184648314,0.00014381,103920.0,103910.0,0.44635696]
[1738184648527,0.00029904,103960.0,103950.0,0.1443]
[1738184648732,0.00029904,103960.0,103950.0,0.39250496]
[1738184648939,0.00029904,103960.0,103950.0,0.46772293]
[1738184648940,0.00044371,103960.0,103950.0,0.46772293]
[1738184649154,0.00044371,103960.0,103950.0,0.02957977]
[1738184649366,0.14956128,103960.0,103940.0,0.36629755]
[1738184649575,0.19009715,103960.0,103930.0,0.192421]
[1738184649789,0.41118791,103960.0,103940.0,0.144312]
[1738184650001,0.41119491,103960.0,103940.0,0.144314]
[1738184650214,0.14913157,103950.0,103930.0,0.529165]
[1738184650426,0.00483157,103950.0,103940.0,1.644314]
[1738184650634,0.14914657,103940.0,103920.0,0.438416]
[1738184650841,0.00483157,103940.0,103930.0,0.148327]
[1738184651047,0.19571234,103950.0,103930.0,0.340758]
[1738184651253,0.40683973,103950.0,103930.0,0.148327]
[1738184651432,0.144314,103940.0,103930.0,0.004]
[1738184651888,0.14914557,103940.0,103930.0,0.004]
[1738184652099,0.00483157,103940.0,103920.0,0.63086]
[1738184652307,0.00483157,103940.0,103920.0,0.46807869]
[1738184652512,0.00483157,103940.0,103930.0,0.009]
[1738184652727,0.14914557,103940.0,103920.0,0.63086]
[1738184652938,0.02866822,103940.0,103930.0,0.144327]
[1738184653146,0.02866822,103940.0,103930.0,0.160327]
[1738184653365,0.02966822,103940.0,103930.0,0.151327]
[1738184653549,0.03449979,103940.0,103930.0,0.151327]
[1738184653791,0.03349979,103940.0,103930.0,0.144327]
[1738184653997,0.02866822,103940.0,103930.0,0.144327]
[1738184654200,0.03349979,103940.0,103930.0,0.17399093]
[1738184654409,0.00586938,103950.0,103940.0,0.144314]
[1738184654618,0.00491157,103950.0,103940.0,0.144314]
[1738184655090,8e-05,103950.0,103940.0,0.43317189]
[1738184655305,8e-05,103950.0,103940.0,0.70909148]
[1738184655930,8e-05,103950.0,103940.0,0.71425991]
[1738184656176,8e-05,103950.0,103940.0,0.71525991]
[1738184656391,8e-05,103950.0,103940.0,0.71425991]
[1738184656592,8e-05,103950.0,103940.0,0.72325991]
[1738184656812,0.00108,103950.0,103940.0,0.72325991]
[1738184657018,0.00108,103950.0,103940.0,0.72725991]
[1738184657226,0.00108,103950.0,103940.0,0.77025991]
[1738184657860,8e-05,103950.0,103940.0,0.77035082]
[1738184658272,0.00108,103950.0,103940.0,0.77935082]
[1738184658483,0.00108,103950.0,103940.0,0.76635082]
[1738184658694,0.00208,103950.0,103940.0,0.79489755]
[1738184658913,0.00308,103950.0,103940.0,0.78389755]
[1738184659119,0.00308,103950.0,103940.0,0.80389755]
[1738184659327,0.00208,103950.0,103940.0,0.79489755]
[1738184659540,0.00308,103950.0,103940.0,0.80389755]
[1738184659745,0.00308,103950.0,103940.0,0.78389755]
[1738184659963,0.00308,103950.0,103940.0,0.80389755]
[1738184660584,0.00308,103950.0,103940.0,2.26089755]
[1738184660761,0.00308,103950.0,103940.0,2.28089755]
[1738184661000,0.00044371,103960.0,103950.0,0.1443]
[1738184661207,0.00044371,103960.0,103950.0,0.56007916]
[1738184661414,0.00044371,103960.0,103950.0,0.55911748]
[1738184661635,0.00044371,103960.0,103950.0,2.08728591]
[1738184662045,0.00044371,103960.0,103950.0,2.05911748]
[1738184662248,0.00144371,103960.0,103950.0,0.28018169]
[1738184662455,0.00244371,103960.0,103950.0,0.3123]
[1738184662662,0.00244371,103960.0,103950.0,0.49883243]
[1738184663091,0.00244371,103960.0,103950.0,0.1623]
[1738184663298,0.14768752,103960.0,103950.0,0.018]
[1738184663508,0.10064468,103960.0,103950.0,0.018]
[1738184663736,0.00244371,103960.0,103950.0,0.34883243]
[1738184664365,0.00148371,103960.0,103950.0,0.33983243]
[1738184664604,0.00248371,103960.0,103950.0,0.49883243]
[1738184664779,0.00148371,103960.0,103950.0,0.48983243]
[1738184665433,0.00048371,103960.0,103950.0,0.48383243]
[1738184666054,0.00148371,103960.0,103950.0,0.48983243]
[1738184666457,0.00248371,103960.0,103950.0,0.49883243]
[1738184666865,0.00148371,103960.0,103950.0,0.48983243]
[1738184667101,0.00148371,103960.0,103950.0,0.49283243]
[1738184667516,0.00048371,103960.0,103950.0,0.48383243]
[1738184667775,0.00148371,103960.0,103950.0,0.49283243]
[1738184667987,0.00148371,103960.0,103950.0,0.48383243]
[1738184668199,0.00148371,103960.0,103950.0,0.58107559]
[1738184668411,0.00248371,103960.0,103950.0,0.94407645]
[1738184668644,0.00483157,104000.0,103990.0,0.144244]
[1738184668868,0.47940602,104020.0,104000.0,0.192294]
[1738184668869,0.00483157,104010.0,104000.0,0.192294]
[1738184669071,0.00483157,104010.0,104000.0,0.57113343]
[1738184669948,0.00497626,104020.0,104010.0,0.144216]
[1738184670207,0.00497626,104020.0,104010.0,0.33074843]
[1738184670425,0.00014469,104020.0,104010.0,1.83074843]
[1738184670850,0.00497626,104020.0,104010.0,1.644216]
[1738184671060,0.14917926,104020.0,104000.0,0.528809]
[1738184671293,0.15217926,104020.0,104000.0,0.384589]
[1738184671524,0.00014469,104020.0,104010.0,0.33170986]
[1738184671731,0.00014469,104020.0,104010.0,0.33074843]
[1738184671945,0.00014469,104020.0,104000.0,1.836516]
[1738184671946,0.01197626,104020.0,104000.0,1.836516]
[1738184672150,0.34645126,104020.0,104000.0,0.336516]
[1738184672365,0.00997626,104020.0,104010.0,0.144216]
[1738184672585,0.00483157,103990.0,103980.0,0.01936728]
[1738184672794,0.00483157,104000.0,103990.0,0.144244]
[1738184673009,0.34138557,104000.0,103970.0,0.71549243]
[1738184673220,0.15004138,103990.0,103970.0,0.14426]
[1738184673440,0.34141857,103990.0,103960.0,0.53227097]
[1738184673645,0.34237638,103990.0,103970.0,0.144271]
[1738184673856,0.00578938,103980.0,103960.0,0.58036097]
[1738184674060,0.00578938,103980.0,103960.0,0.72463697]
[1738184674264,0.62616716,103990.0,103970.0,0.336626]
[1738184674265,0.14907857,103990.0,103970.0,0.336626]
[1738184674470,0.14907857,103990.0,103970.0,0.144272]
[1738184674681,0.34140757,103990.0,103980.0,0.009]
[1738184674894,0.68811392,103990.0,103980.0,0.009]
[1738184675318,0.68811392,103990.0,103980.0,0.33653243]
[1738184675319,0.09724316,103990.0,103980.0,0.33653243]
[1738184675536,0.00029904,104000.0,103990.0,0.144244]
[1738184675744,0.00044368,104000.0,103990.0,0.39244856]
[1738184675957,0.00044368,104000.0,103990.0,0.39148716]
[1738184676375,0.00044368,104000.0,103990.0,0.57801959]
[1738184677616,0.00044368,104000.0,103990.0,0.58701959]
[1738184678786,0.00044368,104000.0,103990.0,0.49277643]
[1738184680118,0.00044368,104000.0,103990.0,0.53126043]
[1738184680342,0.00044368,104000.0,103990.0,0.49277643]
[1738184680548,0.00044368,104000.0,103990.0,1.99277643]
[1738184681171,0.00044368,104000.0,103990.0,0.306244]
[1738184682018,0.00044368,104000.0,103990.0,0.156244]
[1738184682833,0.00044368,104000.0,103990.0,0.012]
[1738184683040,0.00044368,104000.0,103990.0,0.156244]
[1738184683247,0.00044368,104000.0,103990.0,0.34373799]
[1738184683453,0.00044368,104000.0,103990.0,0.59001959]
[1738184683905,0.00044368,104000.0,103990.0,2.09001959]